[Event "XV American Continental 2022"]
[Site "San Salvador"]
[Date "2022.05.06"]
[Round "6.9"]
[White "Do Valle Cardoso, Lucas"]
[Black "Proudian, Armen"]
[Result "0-1"]
[ECO "C55"]
[WhiteElo "2242"]
[BlackElo "2418"]
[Annotator "TA"]
[PlyCount "52"]
[EventDate "2022.05.02"]
[EventCountry "ESA"]
[SourceTitle "playchess.com"]
[Source "ChessBase"]
[SourceQuality "1"]
[TimeControl "40/5400+30:1800+30"]

{[%evp 28,52,10,5,12,20,37,15,69,71,71,74,127,114,89,92,91,-114,-102,-93,-7,-415,-399,-338,-325,-720,-692]} 1. e4 {[%emt 0:07:51]} e5 {[%emt 0:00:26]} 2. Nf3 {[%emt 0:00:05]} Nc6 {[%emt 0:00:31]} 3. d4 {[%emt 0:00:07]} exd4 {[%emt 0:00:46]} 4. Bc4 {[%emt 0:00:07]} Nf6 {[%emt 0:01:49]} 5. e5 {[%emt 0:00:06]} d5 {[%emt 0:00:21]} 6. Bb5 {[%emt 0:00:05]} Ne4 {[%emt 0:00:25]} 7. Nxd4 {[%emt 0:00:06]} Bd7 {[%emt 0:00:23]} 8. Bxc6 {[%emt 0:00:08]} bxc6 {[%emt 0:00:07]} 9. O-O {[%emt 0:00:13]} Bc5 {[%emt 0:03:05]} 10. f3 {[%emt 0:00:08]} Ng5 {[%emt 0:00:16]} 11. f4 {[%emt 0:00:07]} Ne4 {[%emt 0:01:10]} 12. Be3 {[%emt 0:00:06]} Bb6 {[%emt 0:00:31]} 13. Nd2 {[%emt 0:00:07]} Nxd2 {[%emt 0:02:05]} 14. Qxd2 {[%emt 0:00:18]} c5 {[%emt 0:01:06]} 15. Nf3 {[%emt 0:00:06]} d4 {[%emt 0:00:32] C56: Two Knights: 4 d4 exd4 5 0-0 Nxe4.} 16. Bf2 {[%emt 0:00:05] And now Bh4 would win.} Bc6 {[%emt 0:00:29]} 17. Bh4 {[%emt 0:00:10]} Qd5 {[%emt 0:02:33]} (17... Qd7 $11) 18. f5 $14 {[%emt 0:00:42] Hoping for Qg5.} Kd7 {[%emt 0:05:35][%cal Be8d7,Bd7c8,Bc8b7][%mdl 32]} 19. c4 {[%emt 0:23:17]} (19. Qg5 Kc8 $11) 19... Qxc4 {[%emt 0:10:23]} (19... Qe4 $2 20. e6+ Kc8 21. Rae1 $18) (19... dxc3 $142 20. Qxc3 Kc8) 20. e6+ $1 $16 {[%emt 0:00:08]} Kc8 {[%emt 0:00:22]} 21. Ne5 $36 {[%emt 0:00:15][%csl LRc4,LRc6,LRf7][%mdl 2048] White is really pushing.} Qd5 {[%emt 0:00:24]} 22. Nxf7 {[%emt 0:01:27] [#]} (22. Nxc6 $16 {stays on course. Strongly threatening Ne7+.} Qxc6 23. e7 (23. exf7 Rf8 $16)) 22... c4 $1 $17 {[%emt 0:09:52][%mdl 512]} 23. Qg5 {[%emt 0:04:23] [#]} (23. Nxh8 $2 {too greedy.} d3+ 24. Kh1 Be3 $1 $19 {[%mdl 512]}) 23... Rf8 {[%emt 0:24:31] [#]} (23... Re8 $1 $17 24. Rae1 (24. Qxg7 d3+ 25. Bf2 d2 $17) 24... d3+ 25. Bf2 d2) 24. Qxg7 $146 {[%emt 0:10:57][%mdl 8192]} (24. Rae1 $1 $11 {and White is okay.} h6 25. Qg4 (25. Qxg7 Kb7 $17) 25... d3+ 26. Bf2) ({Predecessor:} 24. Bf2 Kb7 25. Rae1 c3 26. bxc3 dxc3 27. Ne5 Rxf5 28. Qxg7 Rxf2 29. Rxf2 Qd2 {0-1 (29) Rios Parra,A (2340)-Panchanathan,M (2486) Badalona 2008}) 24... Kb7 $19 {[%emt 0:00:36]} 25. Nh6 {[%emt 0:00:11] Against Rg8} d3+ {[%emt 0:02:11]} 26. Bf2 $2 {[%emt 0:00:27] [#]} (26. Kh1 Be3 27. Rg1) 26... Rf6 $3 {[%mdl 512] Weighted Error Value: White=0.91/Black=0.24 (precise)} 0-1

[Event "XV American Continental 2022"]
[Site "San Salvador"]
[Date "2022.05.06"]
[Round "6.10"]
[White "Diaz Villagran, Robert"]
[Black "Lorenzana, Wilson Estuardo"]
[Result "1/2-1/2"]
[ECO "B22"]
[WhiteElo "2347"]
[BlackElo "2170"]
[Annotator "TA"]
[PlyCount "52"]
[EventDate "2022.05.02"]
[EventCountry "ESA"]
[SourceTitle "playchess.com"]
[Source "ChessBase"]
[SourceQuality "1"]
[TimeControl "40/5400+30:1800+30"]

{[%evp 21,52,4,20,0,38,10,14,-8,22,-4,-11,-14,0,-31,-13,-22,1,1,1,0,0,0,0,0,0,0,0,-85,-51,-81,-85,-64,-38]} 1. e4 {[%emt 0:04:34]} c5 {[%emt 0:01:01]} 2. c3 {[%emt 0:00:08]} d5 {[%emt 0:00:15]} 3. exd5 {[%emt 0:00:11]} Qxd5 {[%emt 0:00:08]} 4. d4 {[%emt 0:00:13]} Nf6 {[%emt 0:00:59]} 5. Nf3 {[%emt 0:00:16]} e6 {[%emt 0:00:06]} 6. Be2 {[%emt 0:04:28]} Be7 {[%emt 0:00:37]} 7. O-O {[%emt 0:00:11]} O-O {[%emt 0:00:07]} 8. Be3 {[%emt 0:02:18]} cxd4 {[%emt 0:01:57]} 9. cxd4 {[%emt 0:00:11]} Nc6 {[%emt 0:00:04]} 10. Nc3 {[%emt 0:00:32]} Qd6 {[%emt 0:00:06]} 11. Rc1 {[%emt 0:08:41]} a6 {[%emt 0:06:34]} 12. Qd2 {[%emt 0:15:37] B22: Sicilian: 2 c3.} Nb4 {[%emt 0:14:27]} 13. Bf4 {[%emt 0:08:26]} Qd8 {[%emt 0:00:34]} 14. Bg3 {[%emt 0:06:21] [#] The position is equal.} Nbd5 $146 {[%emt 0:07:20]} ({Predecessor:} 14... Bd6 15. Bh4 Nbd5 16. Nxd5 exd5 17. Ne5 Ne4 18. Bxd8 Nxd2 19. Rfd1 Rxd8 20. Rxd2 Bf5 21. Bf3 Rac8 22. Rxc8 Rxc8 {½-½ (34) Bivol,A (2011)-Matlin,A (1868) Kemer 2009}) 15. Bd3 {[%emt 0:00:37]} b5 {[%emt 0:09:36]} 16. Ne5 {[%emt 0:08:26]} Bb7 {[%emt 0:00:08] Prevents Nc6.} 17. Rfe1 {[%emt 0:03:54]} Bb4 {[%emt 0:00:30]} 18. Bb1 {[%emt 0:00:14]} Ne7 {[%emt 0:07:58]} 19. Bh4 {[%emt 0:03:36] [#] Hoping for Bxf6.} Ng6 {[%emt 0:06:43]} 20. Bxf6 {[%emt 0:10:27]} gxf6 {[%emt 0:03:13]} 21. Nxg6 {[%emt 0:02:55]} hxg6 {[%emt 0:00:13]} 22. Qh6 $1 {[%emt 0:00:12][%cal Ob1g6] Bxg6! would kill now.} f5 {[%emt 0:01:36]} 23. Rxe6 {[%emt 0:03:53][%cal Ob1f5] [#] Strongly threatening Bxf5!} Qxd4 {[%emt 0:00:09]} 24. Re3 {[%emt 0:00:35]} (24. Rxg6+ $1 $11 fxg6 25. a3 Bxc3 26. Ba2+ Bd5 27. Qxg6+ Kh8 28. Qh6+ Kg8 29. Qg6+ Kh8 30. Qh6+ Kg8 31. Qg6+) 24... Qg7 {[%emt 0:00:15]} 25. Qf4 {[%emt 0:00:14]} Bc5 {[%emt 0:00:35] A strong pair of Bishops.} 26. Rd3 {[%emt 0:00:56]} Rac8 {[%emt 0:03:37] Against Qc7.  Weighted Error Value: White=0.16 (very precise) /Black=0.12 (very precise)} 1/2-1/2

[Event "XV American Continental 2022"]
[Site "San Salvador"]
[Date "2022.05.06"]
[Round "6.11"]
[White "Munoz Sanchez, Miguel"]
[Black "Figueredo Losada, Leonel"]
[Result "0-1"]
[ECO "B50"]
[WhiteElo "2226"]
[BlackElo "2337"]
[Annotator "TA"]
[PlyCount "62"]
[EventDate "2022.05.02"]
[EventCountry "ESA"]
[SourceTitle "playchess.com"]
[Source "ChessBase"]
[SourceQuality "1"]
[TimeControl "40/5400+30:1800+30"]

{[%evp 20,62,0,-19,12,0,0,-6,15,20,13,12,31,15,40,38,38,29,19,18,32,26,41,33,40,45,33,21,29,47,43,22,83,82,105,97,118,100,152,156,189,182,185,-558,-530]} 1. e4 {[%emt 0:00:10]} c5 {[%emt 0:01:35]} 2. Nf3 {[%emt 0:00:06]} d6 {[%emt 0:00:03]} 3. c3 {[%emt 0:00:13]} Nf6 {[%emt 0:00:05]} 4. h3 {[%emt 0:00:03]} g6 {[%emt 0:00:49]} 5. Bd3 {[%emt 0:01:01]} Bg7 {[%emt 0:00:05]} 6. O-O {[%emt 0:00:07]} O-O {[%emt 0:00:02]} 7. Bc2 {[%emt 0:00:06]} Nc6 {[%emt 0:00:45]} 8. Re1 {[%emt 0:00:42]} e5 {[%emt 0:01:30]} 9. d4 {[%emt 0:01:19]} cxd4 {[%emt 0:19:10]} 10. cxd4 {[%emt 0:00:08]} exd4 {[%emt 0:00:03]} 11. Nxd4 {[%emt 0:02:57]} d5 {[%emt 0:15:12] B50: Sicilian: 2...d6, Miscellaneous.} 12. Nxc6 {[%emt 0:11:08]} bxc6 {[%emt 0:00:07]} 13. Nc3 {[%emt 0:05:25]} d4 {[%emt 0:02:58] The position is equal.} 14. Na4 {[%emt 0:01:06]} Nd7 {[%emt 0:00:03] [#]} 15. Bd3 $146 {[%emt 0:03:52]} ({Predecessor:} 15. Bf4 Ne5 16. Nc5 Qe7 17. Nd3 Ba6 18. Bxe5 Bxe5 19. Bb3 Bxd3 20. Qxd3 a5 21. Rac1 {1-0 (83) Glek,I (2434)-Sarana,A (2411) Moscow 2014}) 15... Qh4 {[%emt 0:05:31]} 16. Bf1 $1 {[%emt 0:05:28]} Rb8 {[%emt 0:10:45]} 17. b3 {[%emt 0:04:13]} Re8 {[%emt 0:01:01]} 18. Qf3 {[%emt 0:10:16]} c5 {[%emt 0:15:37]} 19. Qf4 {[%emt 0:04:52]} ({Don't play} 19. Bc4 Ne5 20. Qf4 Qe7 $15) 19... Qe7 {[%emt 0:03:51]} 20. Qg3 {[%emt 0:02:44]} Bb7 {[%emt 0:05:23]} 21. Bf4 {[%emt 0:02:20]} Ne5 {[%emt 0:00:36]} (21... Bxe4 $2 22. f3 Be5 23. Rxe4 $18) 22. Rac1 {[%emt 0:00:57]} Rbc8 {[%emt 0:00:40]} 23. Bb5 {[%emt 0:03:02]} Red8 {[%emt 0:00:05][%cal Oc5c4]} 24. Bg5 {[%emt 0:00:48]} f6 {[%emt 0:01:18]} 25. Bd2 {[%emt 0:02:17]} g5 {[%emt 0:01:35]} (25... c4 $11 {remains equal.} 26. Bxc4+ Nxc4 27. Rxc4 Rxc4 28. bxc4 Bf8) 26. Nb2 $1 $16 {[%emt 0:04:40]} Kh8 {[%emt 0:03:41] [#]} 27. Nd3 $1 {[%emt 0:01:53]} a6 {[%emt 0:04:38]} 28. Bc4 {[%emt 0:05:10]} Nxd3 {[%emt 0:05:06]} ({Black should try} 28... Nxc4 29. Rxc4 Bf8) 29. Bxd3 {[%emt 0:00:32]} ({But not} 29. Qxd3 $6 Re8 $14) 29... Re8 {[%emt 0:01:03] [#]} 30. h4 $1 {[%emt 0:00:45]} Bh6 {[%emt 0:00:56] Threatens to win with ...gxh4.} 31. Qh3 {[%emt 0:08:14][%mdl 8192] [#]} (31. hxg5 $18 {and life is good for White.} Bxg5 32. f4) 31... g4 $1 {[%emt 0:00:30] Weighted Error Value: White=0.34/Black=0.18 (very precise)} 0-1

[Event "XV American Continental 2022"]
[Site "San Salvador"]
[Date "2022.05.07"]
[Round "7.1"]
[White "Quesada Perez, Yasser"]
[Black "Gareyev, Timur"]
[Result "1/2-1/2"]
[ECO "C49"]
[WhiteElo "2560"]
[BlackElo "2565"]
[Annotator "TA"]
[PlyCount "141"]
[EventDate "2022.05.02"]
[EventCountry "ESA"]
[SourceTitle "playchess.com"]
[Source "ChessBase"]
[SourceQuality "1"]
[TimeControl "40/5400+30:1800+30"]

{[%evp 13,141,0,0,0,-7,-7,-6,-4,0,-10,-10,-7,-4,-10,-4,-15,0,0,0,0,0,0,0,0,0,0,0,0,0,0,0,-8,0,0,0,-10,0,-25,0,0,0,0,0,0,131,-144,118,117,197,197,193,192,179,195,183,195,200,133,214,228,231,180,282,209,226,220,229,160,189,0,123,121,117,115,135,122,119,41,54,8,8,8,8,8,8,8,84,18,18,18,18,18,18,18,18,18,18,18,18,18,18,18,18,18,18,18,18,18,18,18,18,18,18,18,18,11,18,18,18,18,18,18,18,18,18,18,18,18,18,0]} 1. e4 {[%emt 0:00:02]} e5 {[%emt 0:01:27]} 2. Nf3 {[%emt 0:00:19]} Nc6 {[%emt 0:00:09]} 3. Nc3 {[%emt 0:00:07]} Nf6 {[%emt 0:00:07]} 4. Bb5 {[%emt 0:00:07]} Bb4 {[%emt 0:00:07]} 5. O-O {[%emt 0:00:21]} O-O {[%emt 0:00:08]} 6. Bxc6 {[%emt 0:00:53]} dxc6 {[%emt 0:00:04]} 7. d3 {[%emt 0:00:07]} Re8 {[%emt 0:01:12]} 8. h3 {[%emt 0:00:33] C49: Four Knights: 4 Bb5 Bb4.} Nd7 {[%emt 0:00:48][%cal Bf6d7,Bd7f8,Bf8g6,Bg6f4][%mdl 32]} 9. Ne2 {[%emt 0:00:37]} Nf8 {[%emt 0:08:29]} 10. Ng3 {[%emt 0:00:06]} Ng6 {[%emt 0:02:24] [#]} 11. Nf5 $146 {[%emt 0:00:07]} ({Predecessor:} 11. Bg5 Be7 12. Be3 Be6 13. Qd2 c5 14. b3 b6 15. a4 a5 16. Nh5 Qd7 17. Kh2 {0-1 (29) Vinter Schou,U (2349)-Nielsen,V (2301) Ballerup 2020}) 11... a5 {[%emt 0:02:01]} 12. a4 {[%emt 0:06:51]} Bf8 {[%emt 0:08:35]} 13. Bg5 {[%emt 0:09:50]} f6 {[%emt 0:08:47]} 14. Be3 {[%emt 0:00:04]} Nf4 {[%emt 0:01:00]} 15. d4 {[%emt 0:12:42]} exd4 {[%emt 0:07:42]} 16. N3xd4 {[%emt 0:00:04]} Ne6 {[%emt 0:30:26]} 17. Nxe6 {[%emt 0:09:36]} Qxd1 {[%emt 0:01:41]} 18. Rfxd1 {[%emt 0:00:19]} Bxe6 {[%emt 0:00:03]} 19. Nd4 {[%emt 0:01:06]} Bc8 {[%emt 0:01:36]} 20. Bf4 {[%emt 0:02:21]} Rxe4 {[%emt 0:03:19]} 21. Bxc7 {[%emt 0:00:04]} Re8 {[%emt 0:02:08]} 22. Rd3 {[%emt 0:17:28]} Bd7 {[%emt 0:02:27]} 23. Rad1 {[%emt 0:00:35]} Rec8 {[%emt 0:01:10]} 24. Bg3 {[%emt 0:00:44]} b5 {[%emt 0:01:25]} 25. b3 {[%emt 0:00:13]} (25. Nxb5 $5 cxb5 26. Rxd7 bxa4 27. Bd6 $11) 25... Be8 {[%emt 0:02:42]} 26. Ne6 {[%emt 0:08:11]} Bg6 {[%emt 0:00:03]} 27. R3d2 {[%emt 0:00:05]} Bb4 {[%emt 0:01:41]} 28. Rd7 {[%emt 0:00:12]} Bf5 {[%emt 0:01:03]} (28... Bxc2 $11 29. Rxg7+ Kh8) 29. Rxg7+ $16 {[%emt 0:00:18]} Kh8 {[%emt 0:00:01] [#]} 30. Bh4 $1 {[%emt 0:00:58][%cal Oh4f6] White is much more active.} Bc3 {[%emt 0:05:24] [#]} (30... Bxe6 $2 31. Bxf6 h5 32. c3 $18 (32. Re7+ Kg8 $11)) (30... Rg8 $16 31. Bxf6 Rxg7 32. Nxg7 (32. Bxg7+ Kg8 $16) 32... Bxc2 33. Ne6+ Kg8) 31. Rg3 $1 $18 {[%emt 0:00:08]} b4 {[%emt 0:01:44]} 32. Nd4 {[%emt 0:01:16][%cal Rh4f6,Be6d4,Bd4e2,Be2f4,Bf4d3][%mdl 32]} Bg6 {[%emt 0:00:10]} 33. Ne2 {[%emt 0:02:20]} Bb2 {[%emt 0:00:51]} 34. Nf4 {[%emt 0:02:45]} Bf5 {[%emt 0:00:01]} 35. Rd6 {[%emt 0:02:16] Strongly threatening c3.} Rf8 {[%emt 0:00:01]} (35... Be5 $16) 36. Nd3 {[%emt 0:03:05]} (36. Rxc6 $6 Be5 $16) 36... Bc3 {[%emt 0:01:08]} 37. Rxc6 {[%emt 0:00:17]} Rae8 {[%emt 0:02:09]} (37... Bd4 $142 38. Rd6 Rad8) 38. Re3 {[%emt 0:02:21]} Be4 {[%emt 0:00:02]} 39. Rd6 {[%emt 0:08:00]} Kg7 {[%emt 0:01:11]} 40. Rg3+ {[%emt 0:11:08]} Bg6 {[%emt 0:01:29]} 41. Re3 $2 {[%emt 0:02:53]} (41. f4 $18) 41... Rxe3 {[%emt 0:04:44]} (41... Be4 $1 $11 {remains equal.}) 42. fxe3 $16 {[%emt 0:00:01]} Rc8 {[%emt 0:00:52]} 43. Ra6 {[%emt 0:02:23]} Be4 {[%emt 0:04:26]} 44. Ra7+ {[%emt 0:06:34]} Kg8 {[%emt 0:03:43]} 45. Re7 {[%emt 0:05:48]} ({Better is} 45. Rxa5 $16 Bd2 46. Nc5 (46. Bxf6 Rxc2 47. Nf2 Bxe3 $11) 46... Bxe3+ 47. Bf2 Bxc5 48. Rxc5 (48. Bxc5 Bxc2 49. Bxb4 Bxb3 $16) 48... Rxc5 49. Bxc5) 45... Bg6 $14 {[%emt 0:07:58] A strong pair of Bishops.} 46. Kh2 {[%emt 0:04:08]} (46. Bg3 $14) 46... Ba1 $11 {[%emt 0:01:23]} 47. Ne1 {[%emt 0:00:00]} Bc3 {[%emt 0:02:40]} 48. Ra7 {[%emt 0:01:40]} Re8 {[%emt 0:01:40]} 49. Bf2 {[%emt 0:01:46]} Rd8 {[%emt 0:00:55]} (49... Bxe1 $11 50. Bxe1 Rxe3) 50. Nd3 {[%emt 0:01:50]} (50. Rxa5 $16 {And now Kg3 would win.} Rd1 51. Nd3) 50... Bxd3 {[%emt 0:00:44] The position is equal.} 51. cxd3 {[%emt 0:00:03]} Rxd3 {[%emt 0:00:09]} 52. Rxa5 {[%emt 0:01:14][%mdl 4096] Endgame KRB-KRB} Be5+ {[%emt 0:02:39][%mdl 64] Discovered Attack} 53. Bg3 {[%emt 0:04:32]} Rxe3 {[%emt 0:01:08]} ({But not} 53... Bxg3+ 54. Kxg3 Rxe3+ 55. Kf4 Rxb3 56. Ra7 $14) 54. Bxe5 {[%emt 0:00:05]} fxe5 {[%emt 0:00:06] KR-KR} 55. Rb5 {[%emt 0:00:30]} Rxb3 {[%emt 0:00:03]} 56. Rxe5 {[%emt 0:00:05]} Ra3 {[%emt 0:00:10]} 57. a5 {[%emt 0:00:07]} b3 {[%emt 0:00:05]} 58. Rb5 {[%emt 0:00:04]} Kg7 {[%emt 0:00:24]} 59. a6 {[%emt 0:00:08]} Rxa6 {[%emt 0:00:35]} 60. Rxb3 {[%emt 0:00:04]} h5 {[%emt 0:01:02]} 61. Kg3 {[%emt 0:00:35]} Kg6 {[%emt 0:00:14]} 62. Rb4 {[%emt 0:00:04]} Rc6 {[%emt 0:00:16]} 63. Rd4 {[%emt 0:00:28]} Ra6 {[%emt 0:00:38]} 64. Kf4 {[%emt 0:00:10]} Rf6+ {[%emt 0:00:04]} 65. Ke3 {[%emt 0:00:14]} Ra6 {[%emt 0:00:15]} 66. g3 {[%emt 0:00:04]} Rb6 {[%emt 0:00:18]} 67. h4 {[%emt 0:00:19]} Ra6 {[%emt 0:00:08]} 68. Rd5 {[%emt 0:00:24]} Re6+ {[%emt 0:00:24]} 69. Kf4 {[%emt 0:00:07]} Rf6+ {[%emt 0:00:03]} 70. Ke4 {[%emt 0:00:14]} Re6+ {[%emt 0:00:14]} 71. Kf4 {[%emt 0:10:50] Blacks defense is rewarded with a draw.  Weighted Error Value: White=0.16 (very precise) /Black=0.18 (very precise)} 1/2-1/2

[Event "XV American Continental 2022"]
[Site "San Salvador"]
[Date "2022.05.07"]
[Round "7.2"]
[White "Swiercz, Dariusz"]
[Black "Pichot, Alan"]
[Result "1-0"]
[ECO "B91"]
[WhiteElo "2665"]
[BlackElo "2652"]
[Annotator "TA"]
[PlyCount "63"]
[EventDate "2022.05.02"]
[EventCountry "ESA"]
[SourceTitle "playchess.com"]
[Source "ChessBase"]
[SourceQuality "1"]
[TimeControl "40/5400+30:1800+30"]

{[%evp 17,63,7,7,0,0,0,0,0,14,4,8,9,26,29,19,8,85,60,59,63,143,139,148,135,209,208,202,202,208,202,184,185,333,325,329,325,358,357,302,293,556,554,556,556,547,537,442,427]} 1. e4 {[%emt 0:02:00]} c5 {[%emt 0:00:06]} 2. Nf3 {[%emt 0:00:21]} d6 {[%emt 0:00:07]} 3. d4 {[%emt 0:05:16]} cxd4 {[%emt 0:00:07]} 4. Nxd4 {[%emt 0:00:01]} Nf6 {[%emt 0:00:09]} 5. Nc3 {[%emt 0:00:02]} a6 {[%emt 0:00:07]} 6. g3 {[%emt 0:02:01]} e5 {[%emt 0:01:36]} 7. Nb3 {[%emt 0:00:04]} Be7 {[%emt 0:00:36]} 8. Bg2 {[%emt 0:03:16]} O-O {[%emt 0:00:14]} 9. O-O {[%emt 0:00:07]} b5 {[%emt 0:00:39]} 10. a4 {[%emt 0:00:11] B91: Sicilian Najdorf: 6 g3.} b4 {[%emt 0:02:08]} 11. Nd5 {[%emt 0:00:04]} Nxd5 {[%emt 0:01:10]} 12. Qxd5 {[%emt 0:00:03] The position is equal.} Ra7 {[%emt 0:00:06]} 13. Be3 {[%emt 0:00:04]} Be6 {[%emt 0:00:43]} 14. Qd3 {[%emt 0:02:38]} Rd7 {[%emt 0:08:26]} 15. Rfc1 $36 {[%emt 0:29:31][%mdl 2048] White has some pressure.} d5 {[%emt 0:18:33]} 16. Nc5 {[%emt 0:01:47] [#]} dxe4 $146 {[%emt 0:00:58]} (16... d4 $1 $11 17. Nxd7 Nxd7) ({Predecessor:} 16... d4 17. Nxe6 fxe6 18. Bd2 a5 19. Qb5 Bf6 20. Rd1 Rd6 21. Be1 Na6 22. Bf1 Rb6 23. Qxa5 {½-½ (40) Pessoa,F (2507)-Aguiar Garcia,J (2458) ICCF email 2019}) 17. Qxe4 {[%emt 0:12:54]} Bd5 {[%emt 0:02:52]} 18. Qg4 {[%emt 0:00:19]} (18. Qxb4 Bxg2 19. Kxg2 Rc7 $11) 18... f5 {[%emt 0:05:10]} (18... Bxc5 $14 19. Bxc5 Re8) 19. Qe2 $16 {[%emt 0:05:16] Threatens to win with Bxd5+. White is more active.} (19. Nxd7 $6 fxg4 20. Bxd5+ Kh8 21. Nxf8 Qxd5 $11) (19. Qxb4 $6 f4 20. Bxd5+ (20. Nxd7 $2 Bxb4 21. Bxd5+ Kh8 $19) (20. gxf4 $2 exf4 21. Bxd5+ Rxd5 $19) 20... Rxd5 $14) 19... Bxc5 {[%emt 0:29:15]} 20. Bxc5 {[%emt 0:00:10][%cal Be3c5,Bc5b4,Bb4c3][%mdl 32]} Rf6 {[%emt 0:04:44] [#]} (20... Rff7 $16) 21. Bxd5+ $1 $18 {[%emt 0:06:02]} ({Don't play} 21. Qxe5 $6 Nc6 22. Qe1 Bxg2 23. Kxg2 Nd4 24. Bxd4 (24. Qxb4 $2 Qa8+ 25. Kg1 Ne2+ 26. Kf1 Re6 $19) 24... Rxd4 $16) (21. Bxb4 $6 Bxg2 22. Kxg2 Nc6 $16) 21... Rxd5 {[%emt 0:00:08] [#]} 22. Rd1 $1 {[%emt 0:00:01] And now Qc4 would win.} ({Much less strong is} 22. Bxb4 $6 Nc6 $16) 22... Re6 {[%emt 0:07:44]} 23. Bxb4 {[%emt 0:02:19] Strongly threatening Rxd5.} Nc6 {[%emt 0:00:20]} 24. Bc3 {[%emt 0:00:32] Black must now prevent Rxd5.} a5 {[%emt 0:03:24]} (24... f4 {was called for.} 25. b4 Qd6) 25. Rxd5 {[%emt 0:01:49]} Qxd5 {[%emt 0:00:06]} 26. Rd1 {[%emt 0:00:03][%cal Ba1d1,Bd1d4,Bd4d5,Bd5f5,Bf5a5][%mdl 32]} Nd4 {[%emt 0:01:15]} 27. Bxd4 {[%emt 0:00:56]} exd4 {[%emt 0:00:07]} 28. Rxd4 {[%emt 0:13:06]} Rxe2 $2 {[%emt 0:00:52]} (28... Qh1+ 29. Kxh1 Rxe2) 29. Rxd5 {[%emt 0:00:04] White is clearly winning.} Rxc2 {[%emt 0:00:09]} 30. Rxf5 {[%emt 0:00:41]} Rxb2 {[%emt 0:00:05]} 31. Rxa5 {[%emt 0:00:09]} Ra2 {[%emt 0:00:06]} 32. Kg2 {[%emt 0:00:54] Weighted Error Value: White=0.01 (flawless) /Black=0.35} 1-0

[Event "XV American Continental 2022"]
[Site "San Salvador"]
[Date "2022.05.06"]
[Round "7.3"]
[White "Morovic Fernandez, Ivan"]
[Black "Yoo, Christopher Woojin"]
[Result "0-1"]
[ECO "A48"]
[WhiteElo "2495"]
[BlackElo "2535"]
[Annotator "TA"]
[PlyCount "78"]
[EventDate "2022.05.02"]
[EventCountry "ESA"]
[SourceTitle "playchess.com"]
[Source "ChessBase"]
[SourceQuality "1"]
[TimeControl "40/5400+30:1800+30"]

{[%evp 26,78,0,2,6,0,0,0,0,-12,-11,-14,-12,-17,-12,-12,-9,-37,-3,-16,6,-6,-6,-7,0,-25,-25,-19,-17,-28,-39,-40,-42,-41,-40,-34,-29,-35,-45,-167,-163,-169,-171,-164,-169,-201,-170,-142,-98,-145,-54,-35,-61,-431,-411]} 1. d4 {[%emt 0:02:45]} Nf6 {[%emt 0:00:08]} 2. Nf3 {[%emt 0:00:07]} g6 {[%emt 0:01:01]} 3. Nbd2 {[%emt 0:01:17]} c5 {[%emt 0:01:52]} 4. dxc5 {[%emt 0:02:51]} Qa5 {[%emt 0:00:07]} 5. a3 {[%emt 0:01:17]} Qxc5 {[%emt 0:00:10]} 6. b4 {[%emt 0:00:52]} Qc7 {[%emt 0:03:25]} 7. Bb2 {[%emt 0:00:19]} Bg7 {[%emt 0:00:05]} 8. e3 {[%emt 0:04:44]} O-O {[%emt 0:00:41]} 9. c4 {[%emt 0:01:30]} b6 {[%emt 0:00:24]} 10. Be2 {[%emt 0:00:41]} Bb7 {[%emt 0:00:47]} 11. O-O {[%emt 0:00:53]} d6 {[%emt 0:01:06]} 12. Rc1 {[%emt 0:04:10]} Nbd7 {[%emt 0:02:41]} 13. Qb3 {[%emt 0:02:07]} Rac8 {[%emt 0:02:05]} 14. Rfd1 {[%emt 0:01:52]} Qb8 {[%emt 0:01:24] A48: 1 d4 Nf6 2 Nf3 g6: Torre, London and Colle Systems.} 15. Nb1 {[%emt 0:04:50]} (15. Ng5 {looks sharper.} Rfe8 16. h3 h6 17. Ngf3) 15... Qa8 {[%emt 0:03:24] [#]} 16. Nbd2 $146 {[%emt 0:08:54]} ({Predecessor:} 16. Nc3 Rfe8 17. h3 Ne4 18. Nd5 Bxb2 19. Qxb2 Nef6 20. Nc3 Ne4 21. Nb5 a6 22. Nbd4 {1-0 (51) Svane,R (2608)-Hnydiuk,A (2402) Chess.com INT 2020}) 16... Rc7 {[%emt 0:01:50] The position is equal.} 17. Rc2 {[%emt 0:06:24]} Rfc8 {[%emt 0:07:52]} 18. Rdc1 {[%emt 0:00:39]} e5 {[%emt 0:03:42]} 19. Ne1 {[%emt 0:02:06]} a5 {[%emt 0:04:03]} 20. Bf3 {[%emt 0:08:43]} Bxf3 {[%emt 0:02:52]} 21. Ndxf3 {[%emt 0:02:28]} axb4 {[%emt 0:03:24]} 22. axb4 {[%emt 0:00:10]} Ra7 {[%emt 0:00:22]} 23. Rd1 {[%emt 0:02:10]} ({Reject} 23. c5 bxc5 24. bxc5 e4 $17) 23... Qc6 {[%emt 0:03:39]} 24. Rcc1 {[%emt 0:14:07]} Bf8 {[%emt 0:02:51]} 25. b5 {[%emt 0:14:00] [#]} Nc5 $1 {[%emt 0:03:07]} 26. Qc2 {[%emt 0:01:07]} ({Much weaker is} 26. bxc6 Nxb3 27. Rb1 (27. Rc3 Nc5 $17) 27... Nc5 $17) 26... Qe4 {[%emt 0:03:50]} 27. Qe2 {[%emt 0:00:15]} Ra2 {[%emt 0:02:15]} 28. Ra1 {[%emt 0:01:40]} Rca8 {[%emt 0:02:02][%cal Bc8a8,Ba8a4,Ba4a2,Ba2c2][%mdl 32]} 29. Nd2 {[%emt 0:03:03]} Qf5 {[%emt 0:02:59]} 30. Qf3 {[%emt 0:00:40]} R8a4 {[%emt 0:01:39]} 31. Rxa2 {[%emt 0:06:43]} Rxa2 {[%emt 0:00:05]} 32. Bc1 {[%emt 0:00:29]} (32. Bc3 $15) 32... Nfe4 {[%emt 0:01:20]} 33. Nxe4 {[%emt 0:00:42]} Nxe4 {[%emt 0:00:54]} 34. Qxf5 {[%emt 0:00:33]} gxf5 {[%emt 0:00:03]} 35. Nd3 {[%emt 0:00:13]} Nc3 {[%emt 0:03:22]} 36. Re1 {[%emt 0:00:09]} Rc2 {[%emt 0:01:10] Hoping for ...Na2. Black is more active.} 37. Kf1 {[%emt 0:02:27]} (37. Ba3 $142) 37... Na4 {[%emt 0:01:56]} (37... Na2 $17 {Threatens to win with ...e4.} 38. Re2 Rxc1+ 39. Nxc1 Nxc1) 38. Nb4 $15 {[%emt 0:00:58]} Rxc4 {[%emt 0:00:05]} 39. Ba3 {[%emt 0:00:34][%mdl 8192] [#]} (39. Bd2 $15) 39... d5 $1 {[%emt 0:00:36] Weighted Error Value: White=0.39/Black=0.11 (very precise)} 0-1